bitfinex/quotes_ETHUSD_20240719
["timestamp","ask_amount","ask_price","bid_price","bid_amount"]
[1721417536393,2.4412,3539.1,3537.5,0.28268]
[1721417536394,2.4412,3539.1,3537.5,3.10952]
[1721417536514,2.82578,3538.9,3537.8,2.8266]
[1721417536945,2.82573,3538.9,3537.6,2.82677]
[1721417537154,2.82597,3538.6,3537.7,0.841137]
[1721417537352,2.82597,3538.6,3537.7,3.667807]
[1721417537659,2.82573,3538.9,3537.8,2.82655]
[1721417538237,5.26679,3539.1,3537.8,2.82655]
[1721417538238,2.82582,3538.8,3537.8,2.82655]
[1721417538425,2.82598,3538.6,3537.7,0.841137]
[1721417538627,5.26682,3539.1,3537.1,7.39]
[1721417538628,2.82643,3538.1,3537.1,7.39]
[1721417538863,2.82643,3538.1,3537.0,2.339]
[1721417539062,3.55,3538.0,3537.0,5.16625]
[1721417539362,0.55,3538.0,3537.0,5.16624]
[1721417539564,6.37646,3538.0,3537.0,5.16624]
[1721417539735,6.37646,3538.0,3537.1,0.799365]
[1721417539938,3.0,3538.0,3537.1,0.799365]
[1721417540127,3.0,3538.4,3537.0,2.339]
[1721417540328,2.82589,3538.7,3537.0,2.339]
[1721417540329,2.82661,3537.8,3537.0,2.339]
[1721417540528,2.82661,3537.8,3536.5,10.21764]
[1721417540529,2.82685,3537.5,3536.5,10.21764]
[1721417541066,0.55,3537.7,3536.7,2.82748]
[1721417541067,2.82674,3537.7,3536.7,2.82748]
[1721417541268,0.55,3537.6,3536.5,7.39]
[1721417541481,2.82654,3537.9,3536.9,2.8273]
[1721417541765,3.55,3537.8,3536.8,2.82738]
[1721417541937,0.55,3537.8,3536.9,2.82732]
[1721417542151,5.82643,3538.1,3536.6,3.7954]
[1721417542152,3.55,3537.9,3536.6,3.7954]
[1721417542354,2.82679,3537.6,3536.6,3.7954]
[1721417542579,5.82666,3537.8,3536.7,4.457652]
[1721417542780,0.55,3537.7,3536.7,4.457652]
[1721417542941,0.55,3537.7,3536.8,2.8274]
[1721417543578,0.55,3537.7,3536.6,2.82756]
[1721417543579,0.55,3537.7,3537.0,2.82723]
[1721417543778,3.0,3537.8,3537.0,2.82723]
[1721417543960,2.82646,3538.0,3537.0,2.82723]
[1721417543961,3.0,3537.9,3537.0,2.82723]
[1721417544183,0.55,3537.8,3536.7,2.82748]
[1721417544356,0.55,3537.8,3536.7,3.621844]
[1721417544571,3.37666,3537.8,3536.9,2.82732]
[1721417544909,3.0,3537.9,3537.3,2.82697]
[1721417544910,3.0,3537.7,3537.3,2.82697]
[1721417545109,3.0,3537.9,3537.4,2.82693]
[1721417545314,3.0,3538.2,3537.5,0.282693]
[1721417546106,3.0,3538.2,3536.7,0.794364]
[1721417546411,3.0,3538.3,3537.4,2.82693]
[1721417546610,3.55,3538.3,3537.5,2.82684]
[1721417547261,3.55,3538.3,3537.3,2.82695]
[1721417547262,6.37622,3538.3,3537.3,2.82695]
[1721417547793,3.55,3538.3,3537.4,2.82688]
[1721417547996,3.0,3538.2,3537.4,3.392275]
[1721417548159,0.55,3538.3,3537.4,3.392275]
[1721417548393,3.37623,3538.3,3537.4,3.392275]
[1721417548596,5.8263,3538.2,3537.3,2.827]
[1721417548797,5.8263,3538.2,3537.4,2.82693]
[1721417549003,3.0,3538.2,3537.4,2.82693]
[1721417549204,3.0,3538.2,3537.2,2.82707]
[1721417549205,3.0,3538.3,3537.2,2.4601]
[1721417549443,5.27828,3539.1,3538.0,2.82638]
[1721417549596,5.27834,3539.1,3538.0,2.82638]
[1721417549797,3.0,3539.0,3538.0,2.82642]
[1721417549997,2.82581,3538.8,3537.9,2.82652]
[1721417550217,3.0,3538.7,3538.0,0.282652]
[1721417550614,2.4527,3539.1,3538.0,3.109082]
[1721417550615,3.0,3538.9,3538.0,3.109082]
[1721417550801,5.82568,3539.0,3538.0,3.109082]
[1721417551001,0.55,3538.9,3538.1,2.82636]
[1721417551345,2.82527,3539.5,3538.2,2.82626]
[1721417551494,2.82476,3540.2,3538.7,2.82584]
[1721417551698,2.4271,3540.3,3538.8,2.82581]
[1721417551699,2.82486,3540.0,3538.8,2.82581]
[1721417551893,2.82507,3539.8,3538.9,2.82573]
[1721417552159,2.82486,3540.0,3538.9,2.82573]
[1721417552318,2.82493,3539.9,3538.9,2.82573]
[1721417552648,2.82483,3540.1,3539.0,3.390801]
[1721417552793,2.82478,3540.1,3539.0,0.565161]
[1721417552995,5.25176,3540.3,3538.7,2.82589]
[1721417553299,2.82515,3539.7,3538.8,2.82581]
[1721417553530,5.82519,3539.6,3538.6,2.82593]
[1721417553844,2.8255,3539.2,3538.3,0.5439612]
[1721417554296,3.0,3539.1,3538.3,0.5439612]
[1721417554696,5.82561,3539.1,3538.1,2.3307]
[1721417554997,5.82561,3539.1,3538.2,2.82621]
[1721417555217,5.82561,3539.1,3538.1,2.3307]
[1721417555218,3.0,3539.1,3538.3,2.82621]
[1721417555424,3.0,3539.2,3538.3,2.82621]
[1721417556008,5.8255,3539.2,3538.3,2.82621]
[1721417556224,2.82611,3538.5,3537.5,2.82684]
[1721417556441,2.82574,3538.9,3537.9,2.82648]
[1721417556742,3.0,3538.4,3537.6,3.109434]
[1721417556911,3.0,3538.8,3537.6,3.109434]
[1721417557257,3.0,3538.8,3537.6,0.282684]
[1721417557258,2.82618,3538.4,3537.6,0.282684]
[1721417557439,2.82618,3538.4,3537.4,2.82691]
[1721417557747,3.0,3538.3,3537.6,2.82676]
[1721417557947,2.82611,3538.5,3537.4,2.8269]
[1721417558111,3.0,3538.4,3537.4,2.8269]
[1721417558441,3.0,3538.4,3537.2,9.681]
[1721417558442,3.0,3538.4,3537.5,2.82685]
[1721417558644,5.82614,3538.4,3537.5,4.360335]
[1721417560257,3.0,3538.4,3537.6,2.82677]
[1721417560418,2.82598,3538.6,3537.5,1.533485]
[1721417560765,3.0,3538.5,3537.6,0.1533485]
[1721417560968,3.55,3538.7,3538.1,2.82636]
[1721417561123,0.55,3538.7,3538.0,2.82645]
[1721417561326,2.8259,3538.7,3537.8,2.8266]
[1721417561634,5.82598,3538.6,3537.7,2.82669]
[1721417561830,2.82614,3538.4,3537.5,2.82684]
[1721417562037,2.82614,3538.4,3537.3,2.827]
[1721417562038,5.82622,3538.3,3537.3,2.827]
[1721417562231,3.0,3538.3,3537.9,2.82647]
[1721417562458,3.0,3538.8,3537.9,2.82647]
[1721417562619,3.0,3538.8,3538.1,2.82635]
[1721417562620,0.55,3538.7,3538.1,2.82635]
[1721417562818,0.55,3538.7,3537.9,2.82651]
[1721417563043,3.0,3539.0,3538.0,2.8264]
[1721417563044,0.55,3538.9,3538.0,2.8264]
[1721417563219,3.37574,3538.9,3538.0,3.391691]
[1721417563437,3.0,3538.8,3538.0,2.8264]
[1721417563634,2.82566,3539.0,3537.6,2.82674]
[1721417563832,2.82566,3539.0,3537.3,1.533514]
[1721417563833,2.82579,3538.9,3537.9,2.82653]
[1721417564038,2.82566,3539.0,3537.9,2.82653]
[1721417564039,3.37584,3538.8,3537.9,2.82653]
[1721417564280,2.82595,3538.7,3537.8,2.82661]
[1721417564569,2.82595,3538.7,3537.9,0.282661]
[1721417564721,2.82595,3538.7,3537.8,2.82661]
[1721417564920,5.82605,3538.6,3537.6,2.82675]
[1721417565165,3.0,3538.6,3537.7,2.82663]
[1721417565466,3.0,3538.7,3538.0,2.82643]
[1721417565687,0.55,3538.6,3537.8,2.8266]
[1721417565826,0.55,3538.6,3538.0,2.8264]
[1721417566026,3.0,3538.9,3538.0,2.8264]
[1721417566224,2.412,3539.3,3537.7,2.82669]
[1721417566225,3.37583,3538.8,3537.7,2.82669]
[1721417566470,3.37583,3538.8,3537.8,2.82661]
[1721417566471,3.0,3538.7,3537.8,2.82661]
[1721417566678,0.55,3538.6,3537.3,1.533514]
[1721417566828,0.55,3538.6,3538.1,2.82636]
[1721417567028,3.0,3539.0,3538.1,2.82636]
[1721417567370,3.0,3539.0,3538.3,2.82614]
[1721417568961,8.06289,3539.3,3538.3,2.82614]
[1721417568962,3.0,3539.2,3538.3,2.82614]
[1721417569145,2.488,3539.7,3538.3,2.82614]
[1721417569146,0.55,3539.1,3538.5,2.82605]
[1721417569350,2.8252,3539.6,3538.6,2.82589]
[1721417569579,5.07643,3539.8,3538.5,3.391259]
[1721417569580,2.2514,3539.8,3538.5,3.391259]
[1721417569735,2.8251,3539.7,3538.5,2.82604]
[1721417569929,2.82522,3539.6,3538.6,2.82597]
[1721417570160,5.07647,3539.8,3538.8,2.82579]
[1721417570671,0.55,3539.7,3538.8,2.82579]
[1721417570971,0.55,3539.7,3538.7,2.82587]
[1721417571167,0.55,3539.8,3538.9,2.82567]
[1721417571471,2.82528,3539.5,3538.8,0.282587]
[1721417571630,0.55,3539.4,3538.4,2.82607]
[1721417571976,0.55,3539.4,3538.0,2.8264]
[1721417572293,2.82549,3539.3,3538.0,2.8264]
[1721417572428,2.82567,3539.0,3537.9,2.443]
[1721417572630,6.3755,3539.2,3537.9,2.443]
[1721417572631,3.55,3538.9,3538.2,2.82623]
[1721417572838,0.55,3538.9,3538.2,2.82623]
[1721417573033,0.55,3539.1,3538.2,2.82623]
[1721417573543,0.55,3539.1,3538.4,2.82613]
[1721417573971,0.55,3539.2,3538.4,2.82613]
[1721417574487,0.55,3539.2,3538.2,2.82623]
[1721417574488,3.37549,3539.2,3538.3,2.8262]
[1721417574799,3.0,3539.1,3538.4,2.82607]
[1721417575089,0.55,3539.0,3538.4,2.82607]
[1721417575573,0.55,3539.2,3538.4,2.82607]
[1721417576145,0.55,3539.2,3538.5,2.826]
[1721417576362,0.55,3539.2,3538.7,2.82584]
[1721417576681,2.06649198,3540.3,3538.5,3.1086]
[1721417576682,2.3622,3540.4,3538.9,2.4139]
[1721417576840,2.82479,3540.1,3539.2,2.82544]
[1721417578063,2.82476,3540.2,3539.2,2.82544]
[1721417578375,2.82499,3539.9,3539.0,2.82564]
[1721417578597,3.0,3539.8,3539.0,2.82564]
[1721417578783,5.82502,3539.8,3538.8,2.82578]
[1721417578937,0.55,3539.7,3539.0,2.82563]
[1721417579143,0.55,3539.7,3538.9,2.82573]
[1721417579340,0.55,3539.7,3538.6,2.82594]
[1721417579572,2.4328,3539.6,3538.2,2.82628]
[1721417579755,2.82564,3539.1,3538.1,2.82636]
[1721417579993,2.82564,3539.1,3538.2,2.82629]
[1721417580292,0.55,3539.0,3538.1,0.510366]
[1721417580470,3.55,3539.0,3537.9,2.8265]
[1721417580669,2.8258,3538.9,3537.9,2.8265]
[1721417580907,5.73845,3538.8,3537.6,9.7897]
[1721417581113,5.9126,3538.8,3538.0,2.82638]
[1721417581413,5.9126,3538.8,3537.8,2.82656]
[1721417581414,3.55,3538.8,3538.1,2.82637]
[1721417581712,0.55,3538.8,3538.1,2.82637]
[1721417581902,0.55,3538.8,3538.2,2.82628]
[1721417582097,0.55,3538.8,3538.0,2.8264]
[1721417582460,5.82557,3539.1,3538.0,2.8264]
[1721417582461,2.82575,3538.9,3538.0,2.8264]
[1721417582744,3.55,3538.8,3538.0,2.8264]
[1721417582940,3.0,3538.8,3537.9,2.82653]
[1721417583143,3.0,3538.9,3538.1,2.82631]
[1721417584039,5.82574,3538.9,3538.1,2.82631]
[1721417584801,2.82581,3538.8,3537.9,2.82653]
[1721417585001,2.82581,3538.8,3537.7,2.82666]
[1721417585002,3.0,3538.7,3538.0,2.82645]
[1721417585440,5.82574,3538.9,3538.0,2.82645]
[1721417586346,3.0,3538.9,3537.9,2.82647]
[1721417586656,2.82585,3538.8,3538.0,2.82645]
[1721417586804,3.0,3538.7,3537.9,2.82646]
[1721417587005,3.0,3538.7,3537.7,3.91777514]
[1721417587205,3.0,3538.7,3537.9,2.82647]
[1721417587423,2.82639,3538.1,3537.5,7.39]
[1721417587736,5.12552,3538.3,3537.5,7.39]
[1721417587938,5.12551,3538.3,3537.5,7.39]
[1721417588152,1.50159,3538.7,3537.6,0.05653376]
[1721417588358,2.82573,3538.9,3537.9,2.820395]
[1721417588733,2.82582,3538.8,3538.0,2.82643]
[1721417588938,2.07164151,3539.3,3538.1,0.05652414]
[1721417588939,2.82542,3539.3,3538.1,0.05652414]
[1721417589140,2.82542,3539.3,3538.4,2.82611]
[1721417589343,2.82549,3539.2,3538.4,2.82611]
[1721417589570,2.82557,3539.1,3538.2,2.82623]
[1721417589778,2.82557,3539.1,3537.7,2.3263]
[1721417589779,2.82542,3539.3,3538.4,2.82613]
[1721417589938,2.82542,3539.3,3538.4,2.82608]
[1721417590132,2.07159145,3539.8,3537.9,2.82649]
[1721417590335,2.07159145,3539.8,3537.7,2.3263]
[1721417590336,2.82549,3539.3,3538.4,2.82608]
[1721417590556,3.0,3539.2,3538.5,2.82605]
[1721417590735,3.0,3539.2,3538.3,2.82615]
[1721417590736,5.8255,3539.2,3538.3,2.82615]
[1721417591146,3.0,3539.2,3538.3,2.82615]
[1721417591349,3.0,3539.2,3538.4,2.82607]
[1721417591565,2.07159145,3539.7,3538.7,2.82582]
[1721417591873,2.82491,3540.0,3539.1,2.82557]
[1721417591874,2.82486,3540.0,3539.1,2.82557]
[1721417592029,2.3226,3540.5,3538.9,2.82572]
[1721417592030,2.82479,3540.1,3538.9,2.82572]
[1721417592464,2.82479,3540.1,3539.1,2.82557]
[1721417592635,4.39419145,3540.5,3539.1,0.565129]
[1721417592636,2.82486,3540.0,3539.1,0.565129]
[1721417592956,2.82486,3540.0,3539.1,2.82554]
[1721417593161,2.82474,3540.2,3538.5,2.3263]
[1721417593373,2.82474,3540.2,3539.0,2.82564]
[1721417593532,2.82474,3540.2,3539.3,2.82539]
[1721417593533,3.0,3540.1,3539.3,2.82539]
[1721417593737,2.82474,3540.2,3539.1,2.82552]
[1721417593962,2.82474,3540.2,3539.2,3.390596]
[1721417594280,2.82483,3540.1,3539.2,0.565116]
[1721417594438,2.82483,3540.1,3539.1,2.82557]
[1721417594638,2.82483,3540.1,3538.5,2.3263]
[1721417594639,2.82483,3540.1,3539.2,2.82549]
[1721417595105,2.3226,3540.5,3539.2,2.82549]
[1721417595295,5.07143761,3540.7,3539.3,2.3263]
[1721417595440,2.3226,3541.0,3539.4,0.23263]
[1721417595650,3.0,3540.9,3539.4,0.23263]
[1721417595874,2.82455,3540.4,3539.4,3.05794]
[1721417596349,2.82438,3540.6,3539.4,0.23263]
[1721417596685,2.82406,3541.0,3539.9,2.82487]
[1721417596883,2.82422,3540.8,3540.0,0.564996]
[1721417597174,2.2597,3540.8,3539.4,0.23263]
[1721417597640,2.2597,3540.8,3539.8,2.825]
[1721417597809,3.0,3540.8,3539.8,2.825]
[1721417597982,3.0,3540.8,3539.9,2.82493]
[1721417598492,2.2597,3541.2,3539.7,2.82508]
[1721417598493,5.2597,3541.2,3539.7,2.82508]
[1721417598835,2.82399,3541.1,3540.0,2.82481]
[1721417599037,2.82399,3541.1,3540.1,2.82476]
[1721417599220,2.2597,3541.2,3539.8,2.34]
[1721417599221,3.0,3541.0,3539.8,2.34]
[1721417599384,5.82389,3541.3,3539.8,2.34]
[1721417599585,2.82369,3541.5,3540.5,2.82438]
[1721417599933,2.82369,3541.5,3539.8,5.16495]
[1721417599934,5.1328,3541.7,3540.6,2.82436]
[1721417600241,5.1328,3541.7,3540.7,2.82422]
[1721417600520,5.1328,3541.7,3539.9,12.69176]
[1721417600521,2.82412,3541.0,3539.9,12.69176]
[1721417600825,2.3093,3541.7,3539.9,7.39]
[1721417600826,2.82431,3540.7,3539.9,7.39]
[1721417601018,2.3093,3540.9,3539.7,0.305771]
[1721417601265,2.82399,3541.1,3539.8,0.2782671]
[1721417601386,5.3093,3541.4,3539.8,0.2782671]
[1721417601578,5.3093,3541.4,3539.7,2.82503]
[1721417601579,5.13304,3541.4,3539.7,2.82503]
[1721417601782,5.13304,3541.4,3539.9,2.8249]
[1721417601783,2.8239,3541.2,3539.9,2.8249]
[1721417602020,3.0,3541.1,3540.2,2.82468]
[1721417602319,3.0,3541.1,3539.9,2.8249]
[1721417602320,5.82398,3541.1,3539.7,2.82505]
[1721417602618,2.82423,3540.8,3539.8,2.82495]
[1721417602820,5.82398,3541.1,3539.3,7.39]
[1721417602821,2.8246,3540.4,3539.3,7.39]
[1721417603129,2.82463,3540.3,3539.3,7.39]
[1721417603425,2.82454,3540.4,3538.7,7.39]
[1721417603717,2.82454,3540.4,3538.5,2.3767]
[1721417603718,2.82547,3539.3,3538.5,2.3767]
[1721417604387,2.8253,3539.5,3538.5,2.896981]
[1721417604587,2.82534,3539.4,3538.5,2.896981]
[1721417604813,2.82556,3539.2,3538.1,7.39]
[1721417605482,2.82556,3539.2,3538.3,2.8262]
[1721417605683,2.82542,3539.3,3538.3,2.8262]
[1721417606288,2.82549,3539.2,3538.3,2.8262]
[1721417606519,2.487,3540.0,3538.1,7.39]
[1721417606723,0.55,3539.9,3538.2,0.97667]
[1721417606894,5.9026,3540.3,3539.3,2.82536]
[1721417606895,5.3526,3540.3,3539.3,2.82536]
[1721417607102,5.3526,3540.3,3539.3,2.82541]
[1721417607103,3.0,3540.3,3539.3,2.82541]
[1721417607406,2.82488,3540.0,3538.9,2.4657]
[1721417607597,2.82503,3539.8,3538.9,2.4657]
[1721417607794,2.82503,3539.8,3538.9,5.29142]
[1721417608118,2.82503,3539.8,3538.9,4.016438]
[1721417608321,2.82511,3539.7,3538.9,4.016438]
[1721417608526,5.2746,3540.7,3538.9,4.016438]
[1721417608527,2.82483,3540.1,3539.1,2.82551]
[1721417608760,5.2746,3540.7,3539.0,2.82565]
[1721417609025,5.2746,3540.7,3539.1,2.82556]
[1721417609026,2.82486,3540.0,3539.1,2.82556]
[1721417609228,1.77221502,3540.3,3538.9,5.29136]
[1721417609381,2.82502,3539.8,3538.9,5.29136]
[1721417610106,2.82502,3539.8,3538.7,10.21588]
[1721417610107,2.82509,3539.7,3538.7,7.39]
[1721417610318,2.82528,3539.5,3538.7,7.39]
[1721417610521,2.82528,3539.5,3538.0,9.8423]
[1721417610522,2.82591,3538.7,3538.0,9.8423]
[1721417610823,2.82574,3538.9,3538.0,2.4523]
[1721417611303,2.82559,3539.1,3538.0,6.089236]
[1721417611632,2.8258,3538.9,3538.0,3.262846]
[1721417611782,2.8258,3538.9,3538.0,6.089286]
[1721417611984,2.8258,3538.9,3538.0,5.27874]
[1721417612728,2.82582,3538.8,3538.0,2.4523]
[1721417612921,2.82566,3539.0,3538.0,2.4523]
[1721417613089,2.82563,3539.1,3538.1,2.82636]
[1721417613284,1.77250301,3539.7,3538.1,2.82636]
[1721417613285,2.82566,3539.0,3538.1,2.82636]
[1721417614433,2.82574,3538.9,3538.0,2.4523]
[1721417614642,2.82582,3538.8,3537.5,5.27913]
[1721417614927,2.82602,3538.6,3537.7,2.82668]
[1721417615134,2.82582,3538.8,3537.7,2.82668]
[1721417615314,2.82582,3538.8,3537.6,4.093673]
[1721417615315,2.82582,3538.8,3537.9,2.82652]
[1721417615500,2.82567,3539.0,3538.1,2.82632]
[1721417615835,5.82574,3538.9,3537.9,2.82647]
[1721417616532,3.0,3538.9,3538.2,2.82622]
[1721417616828,2.8255,3539.2,3538.2,2.82622]
[1721417616829,5.82566,3539.0,3538.2,2.82622]
[1721417617331,5.82566,3539.0,3538.0,2.8264]
[1721417617488,5.82566,3539.0,3537.9,2.8265]
[1721417617688,2.82582,3538.8,3537.9,3.5185173]
[1721417618115,5.82566,3539.0,3537.9,3.5185173]
[1721417619014,5.82566,3539.0,3538.1,2.82637]
[1721417621137,3.0,3539.0,3538.4,2.2881]
[1721417621344,3.0,3539.5,3538.5,3.06048268]
[1721417621646,3.0,3539.5,3538.7,2.82584]
[1721417621854,5.13894,3539.8,3538.4,2.2881]
[1721417622052,2.82511,3539.7,3538.6,2.82594]
[1721417622399,2.82519,3539.6,3538.7,2.82586]
[1721417622838,2.8253,3539.5,3538.6,2.82594]
[1721417623127,3.0,3539.4,3538.6,2.82594]
[1721417623498,2.8255,3539.2,3538.0,2.2881]
[1721417623734,2.8255,3539.2,3538.1,0.96781]
[1721417624146,2.8255,3539.2,3538.1,3.79418]
[1721417624450,2.8255,3539.2,3538.4,2.82613]
[1721417625361,5.82534,3539.4,3538.4,2.82613]
[1721417625673,2.82542,3539.3,3538.4,2.82613]
[1721417625854,2.82542,3539.3,3538.4,3.488152]
[1721417626420,2.8255,3539.2,3538.4,0.662022]
[1721417626619,2.8255,3539.2,3538.2,2.82623]
[1721417626849,2.82564,3539.1,3538.2,2.82623]
[1721417628181,2.8255,3539.2,3538.3,2.8262]
[1721417628341,2.82558,3539.1,3538.1,0.96781]
[1721417628543,2.82558,3539.1,3538.2,2.82628]
[1721417629134,2.82565,3539.0,3538.2,2.82628]
[1721417629440,2.82587,3538.8,3538.0,2.2881]
[1721417629882,2.82589,3538.7,3537.9,10.21653]
[1721417630075,2.82587,3538.8,3537.7,2.82667]
[1721417630076,2.82598,3538.6,3537.7,2.82667]
[1721417630278,2.82607,3538.5,3537.6,6.553653]
[1721417630463,2.82598,3538.6,3537.6,3.726913]
[1721417630464,2.82618,3538.4,3537.6,3.726913]
[1721417630775,1.77305624,3539.1,3537.6,5.28671]
[1721417630983,2.82574,3538.9,3537.9,2.82648]
[1721417631190,2.82596,3538.7,3537.6,2.46]
[1721417631347,2.82608,3538.5,3537.6,2.46]
[1721417631673,2.433,3538.9,3537.6,5.28676]
[1721417631674,2.82598,3538.6,3537.6,5.28676]
[1721417631985,2.82541,3539.4,3537.6,5.28676]
[1721417631986,2.8257,3539.0,3537.9,2.82647]
[1721417632477,4.12355624,3539.4,3537.7,0.811359]
[1721417632478,2.82595,3538.7,3537.7,0.811359]
[1721417632788,2.82586,3538.8,3537.8,2.8266]
[1721417634185,1.77318048,3539.3,3537.9,2.45752486]
[1721417634476,1.77318048,3540.2,3539.2,2.401]
[1721417634682,2.82486,3540.0,3539.2,2.401]
[1721417635174,2.82503,3539.8,3539.2,2.401]
[1721417635388,2.82486,3540.0,3539.2,2.401]
[1721417635552,2.82471,3540.2,3539.2,2.401]
[1721417635553,2.82494,3539.9,3539.2,2.401]
[1721417635753,2.82472,3540.2,3539.2,2.401]
[1721417636343,2.82479,3540.1,3539.2,2.401]
[1721417637382,2.82457,3540.4,3539.3,2.82536]
[1721417637682,2.82464,3540.3,3539.3,2.82536]
[1721417637886,3.0,3540.2,3539.3,2.82536]
[1721417638238,2.82424,3540.8,3539.7,2.3428]
[1721417638443,1.77285288,3540.9,3539.7,2.3428]
[1721417638444,1.77285288,3540.9,3539.9,2.82489]
[1721417638755,2.82406,3541.0,3539.7,2.3428]
[1721417638756,2.82426,3540.8,3539.7,2.3428]
[1721417638946,2.82466,3540.3,3539.7,2.3428]
[1721417639571,2.82446,3540.5,3539.7,2.3428]
[1721417640381,2.82454,3540.4,3539.7,2.3428]
[1721417640547,2.82439,3540.6,3539.2,2.3428]
[1721417640548,2.488,3540.1,3539.2,2.3428]
[1721417640743,2.82507,3539.8,3539.2,2.3428]
[1721417641050,5.82451,3540.5,3539.2,5.16822]
[1721417641369,2.82433,3540.7,3539.4,2.82532]
[1721417641370,3.0,3540.6,3539.4,2.82532]
[1721417641584,2.82451,3540.5,3539.4,2.82532]
[1721417641887,2.82451,3540.5,3539.5,2.82523]
[1721417642391,2.82451,3540.5,3539.4,2.82532]
[1721417642392,2.82458,3540.4,3539.4,2.82532]
[1721417642781,2.82484,3540.1,3539.2,2.3428]
[1721417643010,2.82503,3539.8,3539.2,2.3428]
[1721417643597,2.82494,3539.9,3539.2,2.3428]
[1721417643787,2.82464,3540.3,3539.2,5.40257]
[1721417643990,3.0,3540.7,3539.2,5.40257]
[1721417643991,1.77241776,3540.7,3539.2,2.57708]
[1721417644200,2.82475,3540.2,3539.2,2.57708]
[1721417644885,2.82454,3540.4,3539.3,2.82541]
[1721417645195,2.8247,3540.2,3539.2,5.40257]
[1721417645401,2.8247,3540.2,3539.3,0.540257]
[1721417646717,2.82506,3539.8,3539.2,2.3428]
[1721417647541,3.0,3540.3,3539.2,2.3428]
[1721417647542,2.82526,3539.5,3539.2,2.3428]
[1721417647728,2.82512,3539.7,3539.2,2.3428]
[1721417648803,7.59905752,3540.3,3539.2,2.3428]
[1721417649003,3.0,3540.3,3539.3,0.516845]
[1721417649205,3.0,3540.3,3539.4,2.82532]
[1721417649525,2.82482,3540.1,3539.3,0.516845]
[1721417649719,1.77437752,3540.5,3539.6,2.82517]
[1721417649931,1.77437752,3540.6,3539.7,2.82508]
[1721417650134,1.77437752,3540.7,3539.8,5.29]
[1721417650434,2.82425,3540.8,3539.8,5.29]
[1721417650635,4.5983346,3540.8,3539.8,5.29]
[1721417650800,2.8243,3540.7,3539.8,5.29]
[1721417651130,1.7740846,3540.8,3539.8,5.29]
[1721417651340,1.7740846,3540.9,3540.4,2.3873]
[1721417651500,2.82358,3541.6,3540.4,2.3873]
[1721417651694,2.82358,3541.6,3540.5,2.8244]
[1721417651925,2.82343,3541.8,3540.6,0.05647987]
[1721417652100,2.82327,3542.0,3540.8,2.82421]
[1721417652299,2.82319,3542.1,3540.8,2.82421]
[1721417652815,2.82319,3542.1,3541.1,2.82397]
[1721417654936,2.82327,3542.0,3540.9,2.82413]
[1721417655163,2.82305,3542.3,3540.9,2.82413]
[1721417655341,2.82305,3542.3,3540.9,3.3979548]
[1721417655708,3.0,3542.6,3541.3,2.3144]
[1721417655913,16.143295,3543.9,3541.3,2.3144]
[1721417655914,2.82256,3542.9,3541.8,2.3144]
[1721417656808,2.488,3543.5,3541.8,2.3144]
[1721417657119,7.47,3543.8,3541.4,2.3144]
[1721417657120,2.82295,3542.4,3541.4,2.3144]
[1721417657754,5.31077,3542.7,3541.4,2.3144]
[1721417657755,2.82311,3542.2,3541.4,2.3144]
[1721417657957,2.82318,3542.1,3541.4,2.3144]
[1721417658117,2.488,3542.7,3541.4,2.3144]
[1721417658118,2.82326,3542.0,3541.4,2.3144]
[1721417658325,2.82326,3542.0,3540.9,2.4141]
[1721417658522,2.82326,3542.0,3541.0,0.98041]
[1721417658756,2.82343,3541.8,3540.9,2.4141]
[1721417658963,2.82331,3542.0,3540.9,5.23822]
[1721417659161,2.488,3542.3,3540.9,2.4141]
[1721417659336,2.82342,3541.8,3540.9,2.4141]
[1721417659534,2.82362,3541.6,3540.9,2.4141]
[1721417659961,2.82366,3541.5,3540.9,2.4141]
[1721417660259,2.82366,3541.5,3540.6,0.52681799]
[1721417660260,2.82388,3541.3,3540.4,2.4141]
[1721417660433,2.82388,3541.3,3540.4,3.78082663]
[1721417660634,2.8239,3541.2,3540.4,3.78082663]
[1721417660856,2.82412,3541.0,3540.4,2.4141]
[1721417661158,2.82387,3541.3,3540.4,2.4141]
[1721417661367,2.82404,3541.1,3540.4,2.4141]
[1721417661535,2.82414,3540.9,3539.9,2.284]
[1721417661734,2.3475,3541.3,3539.9,2.284]
[1721417661735,2.82444,3540.6,3539.9,2.284]
[1721417661950,2.82453,3540.5,3539.9,2.284]
[1721417662458,5.82394,3541.2,3539.9,2.284]
[1721417662459,2.824,3541.1,3539.9,2.284]
[1721417662662,2.82419,3540.9,3539.9,2.284]
[1721417663350,3.0,3541.2,3539.9,3.07741]
[1721417663545,2.82406,3541.0,3539.9,2.284]
[1721417663750,2.82392,3541.2,3539.9,2.284]
[1721417663945,2.82392,3541.2,3540.0,2.82484]
[1721417663946,3.0,3541.1,3540.0,2.82484]
[1721417664183,2.82408,3541.0,3539.9,2.284]
[1721417664483,2.82422,3540.8,3539.9,2.284]
[1721417664676,2.82431,3540.7,3539.9,2.284]
[1721417665884,2.82427,3540.8,3539.9,2.284]